[Event "Titled Tuesday Blitz April 26 Early 2022"]
[White "Sanchez Alvares, Kelvin Antonio"]
[Black "Schekachikhin, Maksim"]
[WhiteFideId "3906680"]
[BlackFideId "24177830"]
[WhiteElo "2193"]
[BlackElo "2230"]
[Result "0-1"]
[Round "08"]
[TimeControl "180+1"]
[Date "2022.04.26"]
[WhiteClock "0:00:12"]
[BlackClock "0:00:16"]

1. e4 {[%clk 0:03:00]}  c5 {[%clk 0:02:59]} 2. Nf3 {[%clk 0:02:59]}  e6 {[%clk 0:02:58]} 3. d4 {[%clk 0:02:46]}  cxd4 {[%clk 0:02:59]} 4. Nxd4 {[%clk 0:02:45]}  Nc6 {[%clk 0:02:59]} 5. Nc3 {[%clk 0:02:44]}  Qc7 {[%clk 0:02:59]} 6. Be3 {[%clk 0:02:36]}  Nf6 {[%clk 0:02:58]} 7. Qf3 {[%clk 0:02:35]}  Bb4 {[%clk 0:02:49]} 8. Nb5 {[%clk 0:02:32]}  Qa5 {[%clk 0:02:41]} 9. Qg3 {[%clk 0:02:14]}  O-O {[%clk 0:02:33]} 10. Bd2 {[%clk 0:02:01]}  d5 {[%clk 0:02:23]} 11. e5 {[%clk 0:01:52]}  Ne4 {[%clk 0:02:11]} 12. Nxe4 {[%clk 0:01:49]}  dxe4 {[%clk 0:02:12]} 13. c3 {[%clk 0:01:38]}  Be7 {[%clk 0:02:00]} 14. f4 {[%clk 0:01:29]}  a6 {[%clk 0:01:44]} 15. Nd4 {[%clk 0:01:26]}  Nxd4 {[%clk 0:01:43]} 16. cxd4 {[%clk 0:01:27]}  Qb6 {[%clk 0:01:44]} 17. Bc3 {[%clk 0:01:25]}  Bb4 {[%clk 0:01:43]} 18. Be2 {[%clk 0:01:16]}  Qxd4 {[%clk 0:01:40]} 19. Rd1 {[%clk 0:01:09]}  Qc5 {[%clk 0:01:23]} 20. Bxb4 {[%clk 0:00:54]}  Qxb4+ {[%clk 0:01:23]} 21. Qc3 {[%clk 0:00:55]}  Qxc3+ {[%clk 0:01:14]} 22. bxc3 {[%clk 0:00:56]}  b5 {[%clk 0:01:15]} 23. Kf2 {[%clk 0:00:48]}  Bb7 {[%clk 0:01:15]} 24. Rd7 {[%clk 0:00:47]}  Bd5 {[%clk 0:01:15]} 25. Ra1 {[%clk 0:00:44]}  Rfc8 {[%clk 0:01:14]} 26. a4 {[%clk 0:00:43]}  bxa4 {[%clk 0:01:11]} 27. Rxa4 {[%clk 0:00:38]}  Bc6 {[%clk 0:01:11]} 28. Rdd4 {[%clk 0:00:26]}  Bxa4 {[%clk 0:01:10]} 29. Rxa4 {[%clk 0:00:27]}  Rxc3 {[%clk 0:01:10]} 30. Rxe4 {[%clk 0:00:27]}  a5 {[%clk 0:01:09]} 31. Ra4 {[%clk 0:00:27]}  g6 {[%clk 0:01:09]} 32. h4 {[%clk 0:00:25]}  h5 {[%clk 0:01:08]} 33. g4 {[%clk 0:00:22]}  hxg4 {[%clk 0:01:05]} 34. Bxg4 {[%clk 0:00:23]}  Kg7 {[%clk 0:00:56]} 35. h5 {[%clk 0:00:23]}  gxh5 {[%clk 0:00:46]} 36. Bxh5 {[%clk 0:00:23]}  Rb3 {[%clk 0:00:42]} 37. Bf3 {[%clk 0:00:18]}  Ra7 {[%clk 0:00:41]} 38. Kg3 {[%clk 0:00:15]}  Rb4 {[%clk 0:00:37]} 39. Ra3 {[%clk 0:00:15]}  a4 {[%clk 0:00:35]} 40. Bd1 {[%clk 0:00:15]}  Rd7 {[%clk 0:00:33]} 41. Rxa4 {[%clk 0:00:15]}  Rd3+ {[%clk 0:00:29]} 42. Kg4 {[%clk 0:00:14]}  Rb1 {[%clk 0:00:18]} 43. Bc2 {[%clk 0:00:12]}  Rg1+ {[%clk 0:00:16]} 44. Kh4 {[%clk 0:00:12]}  Rd2 {[%clk 0:00:16]} 0-1


[Site "https://www.chess.com"]

[Event "Titled Tuesday Blitz April 26 Early 2022"]
[White "Seemann, Jakub"]
[Black "Sargissyan, Sargis"]
[WhiteFideId "21874697"]
[BlackFideId "13303210"]
[WhiteElo "2003"]
[BlackElo "2174"]
[Result "1-0"]
[Round "08"]
[TimeControl "180+1"]
[Date "2022.04.26"]
[WhiteClock "0:00:03"]
[BlackClock "0:00:03"]

1. Nf3 {[%clk 0:03:00]}  Nf6 {[%clk 0:02:58]} 2. b3 {[%clk 0:03:01]}  g6 {[%clk 0:02:57]} 3. Bb2 {[%clk 0:03:02]}  Bg7 {[%clk 0:02:58]} 4. e3 {[%clk 0:03:03]}  O-O {[%clk 0:02:59]} 5. Be2 {[%clk 0:03:03]}  c5 {[%clk 0:02:50]} 6. O-O {[%clk 0:03:03]}  b6 {[%clk 0:02:44]} 7. d4 {[%clk 0:03:01]}  Bb7 {[%clk 0:02:45]} 8. Nbd2 {[%clk 0:03:00]}  d6 {[%clk 0:02:41]} 9. c4 {[%clk 0:02:57]}  e6 {[%clk 0:02:36]} 10. Qc2 {[%clk 0:02:56]}  Nbd7 {[%clk 0:02:37]} 11. Rfd1 {[%clk 0:02:55]}  Qc7 {[%clk 0:02:32]} 12. Rac1 {[%clk 0:02:56]}  Rac8 {[%clk 0:02:32]} 13. Qb1 {[%clk 0:02:55]}  Rfe8 {[%clk 0:02:04]} 14. e4 {[%clk 0:02:53]}  cxd4 {[%clk 0:02:03]} 15. Nxd4 {[%clk 0:02:53]}  a6 {[%clk 0:02:02]} 16. Bf3 {[%clk 0:02:50]}  Nc5 {[%clk 0:02:02]} 17. b4 {[%clk 0:02:45]}  Ncd7 {[%clk 0:01:38]} 18. a4 {[%clk 0:02:38]}  Qb8 {[%clk 0:01:35]} 19. N4b3 {[%clk 0:02:32]}  Qa8 {[%clk 0:01:27]} 20. a5 {[%clk 0:02:31]}  Qa7 {[%clk 0:01:13]} 21. axb6 {[%clk 0:02:31]}  Qxb6 {[%clk 0:01:14]} 22. Na5 {[%clk 0:02:21]}  Ba8 {[%clk 0:01:09]} 23. Bc3 {[%clk 0:02:19]}  h5 {[%clk 0:00:54]} 24. h3 {[%clk 0:02:18]}  g5 {[%clk 0:00:51]} 25. c5 {[%clk 0:02:17]}  dxc5 {[%clk 0:00:48]} 26. Ndc4 {[%clk 0:02:17]}  Qb8 {[%clk 0:00:42]} 27. Bxf6 {[%clk 0:01:43]}  Nxf6 {[%clk 0:00:31]} 28. Nd6 {[%clk 0:01:43]}  cxb4 {[%clk 0:00:29]} 29. Rxc8 {[%clk 0:01:40]}  Rxc8 {[%clk 0:00:29]} 30. Nxc8 {[%clk 0:01:40]}  Qxc8 {[%clk 0:00:29]} 31. Qxb4 {[%clk 0:01:40]}  g4 {[%clk 0:00:28]} 32. hxg4 {[%clk 0:01:39]}  hxg4 {[%clk 0:00:29]} 33. Qe7 {[%clk 0:01:16]}  Kh7 {[%clk 0:00:20]} 34. e5 {[%clk 0:01:13]}  gxf3 {[%clk 0:00:18]} 35. exf6 {[%clk 0:01:12]}  Qc2 {[%clk 0:00:18]} 36. Qxf7 {[%clk 0:00:48]}  Qxd1+ {[%clk 0:00:17]} 37. Kh2 {[%clk 0:00:49]}  Kh6 {[%clk 0:00:08]} 38. fxg7 {[%clk 0:00:43]}  fxg2 {[%clk 0:00:07]} 39. g8=N+ {[%clk 0:00:21]}  Kg5 {[%clk 0:00:07]} 40. Qf6+ {[%clk 0:00:17]}  Kg4 {[%clk 0:00:04]} 41. Qg6+ {[%clk 0:00:12]}  Kf4 {[%clk 0:00:03]} 42. Qg3+ {[%clk 0:00:11]}  Kf5 {[%clk 0:00:02]} 43. Nh6+ {[%clk 0:00:04]}  Kf6 {[%clk 0:00:02]} 44. Qf4+ {[%clk 0:00:03]}  Kg7 {[%clk 0:00:02]} 45. Qg4+ {[%clk 0:00:03]}  Kh7 {[%clk 0:00:03]} 46. Qxd1 {[%clk 0:00:03]} 1-0


[Site "https://www.chess.com"]

[Event "Titled Tuesday Blitz April 26 Early 2022"]
[White "Seifert, Henryk"]
[Black "Przybylski, Wojciech"]
[WhiteFideId "1100963"]
[BlackFideId "1117599"]
[WhiteElo "2120"]
[BlackElo "2133"]
[Result "1-0"]
[Round "08"]
[TimeControl "180+1"]
[Date "2022.04.26"]
[WhiteClock "0:00:07"]
[BlackClock "0:00:06"]

1. e4 {[%clk 0:03:00]}  c5 {[%clk 0:02:54]} 2. Nf3 {[%clk 0:03:00]}  e6 {[%clk 0:02:54]} 3. c3 {[%clk 0:03:00]}  Nf6 {[%clk 0:02:53]} 4. e5 {[%clk 0:02:59]}  Nd5 {[%clk 0:02:53]} 5. d4 {[%clk 0:02:59]}  cxd4 {[%clk 0:02:53]} 6. cxd4 {[%clk 0:02:59]}  d6 {[%clk 0:02:54]} 7. Bc4 {[%clk 0:02:57]}  Be7 {[%clk 0:02:54]} 8. O-O {[%clk 0:02:56]}  O-O {[%clk 0:02:54]} 9. Bd2 {[%clk 0:02:48]}  b6 {[%clk 0:02:52]} 10. Nc3 {[%clk 0:02:46]}  Nxc3 {[%clk 0:02:47]} 11. Bxc3 {[%clk 0:02:47]}  Ba6 {[%clk 0:02:44]} 12. Bxa6 {[%clk 0:02:23]}  Nxa6 {[%clk 0:02:43]} 13. Qe2 {[%clk 0:02:03]}  Nc7 {[%clk 0:02:43]} 14. Nd2 {[%clk 0:01:56]}  Nd5 {[%clk 0:02:42]} 15. Ne4 {[%clk 0:01:56]}  Rc8 {[%clk 0:02:39]} 16. Rac1 {[%clk 0:01:54]}  Qd7 {[%clk 0:02:30]} 17. Rfd1 {[%clk 0:01:51]}  Rc7 {[%clk 0:02:26]} 18. Bd2 {[%clk 0:01:22]}  Rfc8 {[%clk 0:02:22]} 19. Rxc7 {[%clk 0:01:21]}  Rxc7 {[%clk 0:02:22]} 20. Bg5 {[%clk 0:01:15]}  Bf8 {[%clk 0:02:09]} 21. Qg4 {[%clk 0:01:10]}  dxe5 {[%clk 0:01:41]} 22. dxe5 {[%clk 0:01:06]}  Rc4 {[%clk 0:00:56]} 23. Bf6 {[%clk 0:00:53]}  Rxe4 {[%clk 0:00:40]} 24. Qxe4 {[%clk 0:00:49]}  Nxf6 {[%clk 0:00:40]} 25. Rxd7 {[%clk 0:00:43]}  Nxe4 {[%clk 0:00:40]} 26. Rxa7 {[%clk 0:00:42]}  Nd2 {[%clk 0:00:31]} 27. Rb7 {[%clk 0:00:39]}  Nc4 {[%clk 0:00:29]} 28. b3 {[%clk 0:00:39]}  Nxe5 {[%clk 0:00:28]} 29. Rxb6 {[%clk 0:00:38]}  g6 {[%clk 0:00:23]} 30. a4 {[%clk 0:00:38]}  Nd7 {[%clk 0:00:18]} 31. Rb7 {[%clk 0:00:34]}  Nc5 {[%clk 0:00:17]} 32. Rb5 {[%clk 0:00:28]}  Na6 {[%clk 0:00:16]} 33. a5 {[%clk 0:00:26]}  Bc5 {[%clk 0:00:15]} 34. b4 {[%clk 0:00:20]}  Bd4 {[%clk 0:00:13]} 35. Rb7 {[%clk 0:00:16]}  Bc3 {[%clk 0:00:06]} 36. b5 {[%clk 0:00:15]}  Nc5 {[%clk 0:00:06]} 37. Rb8+ {[%clk 0:00:14]}  Kg7 {[%clk 0:00:06]} 38. a6 {[%clk 0:00:13]}  Nd7 {[%clk 0:00:03]} 39. a7 {[%clk 0:00:14]}  Be5 {[%clk 0:00:02]} 40. Rb7 {[%clk 0:00:08]}  Nc5 {[%clk 0:00:02]} 41. a8=Q {[%clk 0:00:08]}  Nxb7 {[%clk 0:00:02]} 42. Qxb7 {[%clk 0:00:08]}  h5 {[%clk 0:00:02]} 43. Qc8 {[%clk 0:00:07]}  Bd4 {[%clk 0:00:02]} 44. Qc4 {[%clk 0:00:06]}  Bb6 {[%clk 0:00:02]} 45. Qc6 {[%clk 0:00:06]}  Bd4 {[%clk 0:00:02]} 46. b6 {[%clk 0:00:06]}  Be5 {[%clk 0:00:03]} 47. b7 {[%clk 0:00:06]}  Kf6 {[%clk 0:00:04]} 48. Qc8 {[%clk 0:00:07]}  Kf5 {[%clk 0:00:04]} 49. b8=Q {[%clk 0:00:07]}  Bxb8 {[%clk 0:00:04]} 50. Qxb8 {[%clk 0:00:07]}  e5 {[%clk 0:00:05]} 51. Qf8 {[%clk 0:00:07]}  f6 {[%clk 0:00:05]} 52. Qe8 {[%clk 0:00:08]}  h4 {[%clk 0:00:06]} 53. f3 {[%clk 0:00:08]}  Kg5 {[%clk 0:00:06]} 54. Kf2 {[%clk 0:00:08]}  Kf4 {[%clk 0:00:06]} 55. h3 {[%clk 0:00:08]}  Kg5 {[%clk 0:00:06]} 56. Qe6 {[%clk 0:00:08]}  f5 {[%clk 0:00:06]} 57. Qxe5 {[%clk 0:00:08]}  Kh5 {[%clk 0:00:06]} 58. f4 {[%clk 0:00:07]}  Kh6 {[%clk 0:00:06]} 59. Qh8# {[%clk 0:00:07]} 1-0


[Site "https://www.chess.com"]

[Event "Titled Tuesday Blitz April 26 Early 2022"]
[White "Skliarov, Viktor"]
[Black "Khamdamova, Afruza"]
[WhiteFideId "14106736"]
[BlackFideId "14210444"]
[WhiteElo "2229"]
[BlackElo "1660"]
[Result "1/2-1/2"]
[Round "08"]
[TimeControl "180+1"]
[Date "2022.04.26"]
[WhiteClock "0:00:06"]
[BlackClock "0:00:04"]

1. e4 {[%clk 0:03:00]}  e5 {[%clk 0:02:59]} 2. Nc3 {[%clk 0:02:59]}  Nf6 {[%clk 0:02:58]} 3. Bc4 {[%clk 0:02:59]}  Nc6 {[%clk 0:02:51]} 4. d3 {[%clk 0:02:52]}  Bc5 {[%clk 0:02:49]} 5. h3 {[%clk 0:02:52]}  d6 {[%clk 0:02:46]} 6. a3 {[%clk 0:02:52]}  a5 {[%clk 0:02:45]} 7. Nge2 {[%clk 0:02:52]}  h6 {[%clk 0:02:41]} 8. Ng3 {[%clk 0:02:52]}  O-O {[%clk 0:02:40]} 9. O-O {[%clk 0:02:52]}  Be6 {[%clk 0:02:35]} 10. Nd5 {[%clk 0:02:52]}  Rb8 {[%clk 0:02:22]} 11. c3 {[%clk 0:02:38]}  b5 {[%clk 0:02:19]} 12. Ba2 {[%clk 0:02:38]}  Bxd5 {[%clk 0:02:16]} 13. exd5 {[%clk 0:02:37]}  Ne7 {[%clk 0:02:16]} 14. Qf3 {[%clk 0:02:26]}  b4 {[%clk 0:02:13]} 15. axb4 {[%clk 0:01:15]}  axb4 {[%clk 0:02:12]} 16. cxb4 {[%clk 0:01:16]}  Rxb4 {[%clk 0:02:11]} 17. Bxh6 {[%clk 0:01:16]}  Nfxd5 {[%clk 0:01:53]} 18. Bxd5 {[%clk 0:01:09]}  Nxd5 {[%clk 0:01:52]} 19. Bxg7 {[%clk 0:01:10]}  Kxg7 {[%clk 0:01:51]} 20. Qxd5 {[%clk 0:00:53]}  Rf4 {[%clk 0:01:27]} 21. Nh5+ {[%clk 0:00:52]}  Kh6 {[%clk 0:01:12]} 22. Nxf4 {[%clk 0:00:52]}  exf4 {[%clk 0:01:12]} 23. d4 {[%clk 0:00:47]}  Bb6 {[%clk 0:01:11]} 24. Rfe1 {[%clk 0:00:39]}  Qf6 {[%clk 0:01:07]} 25. Re4 {[%clk 0:00:30]}  Rg8 {[%clk 0:01:06]} 26. Kf1 {[%clk 0:00:23]}  Rg5 {[%clk 0:01:05]} 27. Qa8 {[%clk 0:00:20]}  Qg7 {[%clk 0:00:58]} 28. Rxf4 {[%clk 0:00:17]}  Bxd4 {[%clk 0:00:40]} 29. Rh4+ {[%clk 0:00:17]}  Rh5 {[%clk 0:00:40]} 30. Rxh5+ {[%clk 0:00:15]}  Kxh5 {[%clk 0:00:40]} 31. Qd5+ {[%clk 0:00:16]}  Kh6 {[%clk 0:00:34]} 32. Ra4 {[%clk 0:00:13]}  c5 {[%clk 0:00:32]} 33. b4 {[%clk 0:00:13]}  Qf6 {[%clk 0:00:30]} 34. f3 {[%clk 0:00:09]}  Qh4 {[%clk 0:00:20]} 35. Qxd6+ {[%clk 0:00:06]}  Kg7 {[%clk 0:00:20]} 36. Ra2 {[%clk 0:00:06]}  Qg5 {[%clk 0:00:19]} 37. bxc5 {[%clk 0:00:05]}  Qc1+ {[%clk 0:00:18]} 38. Ke2 {[%clk 0:00:05]}  Qe3+ {[%clk 0:00:18]} 39. Kd1 {[%clk 0:00:06]}  Bxc5 {[%clk 0:00:16]} 40. Qd2 {[%clk 0:00:05]}  Qb3+ {[%clk 0:00:12]} 41. Qc2 {[%clk 0:00:05]}  Qd5+ {[%clk 0:00:11]} 42. Ke2 {[%clk 0:00:04]}  Qe6+ {[%clk 0:00:10]} 43. Kf1 {[%clk 0:00:04]}  Qe3 {[%clk 0:00:08]} 44. g4 {[%clk 0:00:04]}  Qg1+ {[%clk 0:00:08]} 45. Ke2 {[%clk 0:00:04]}  Qf2+ {[%clk 0:00:07]} 46. Kd3 {[%clk 0:00:04]}  Qe3+ {[%clk 0:00:04]} 47. Kc4 {[%clk 0:00:05]}  Qd4+ {[%clk 0:00:04]} 48. Kb5 {[%clk 0:00:05]}  Qb4+ {[%clk 0:00:04]} 49. Kc6 {[%clk 0:00:05]}  Qb6+ {[%clk 0:00:04]} 50. Kd5 {[%clk 0:00:05]}  Qd6+ {[%clk 0:00:04]} 51. Kc4 {[%clk 0:00:06]}  Qd4+ {[%clk 0:00:04]} 52. Kb5 {[%clk 0:00:06]}  Qb4+ {[%clk 0:00:04]} 53. Kc6 {[%clk 0:00:07]}  Qb6+ {[%clk 0:00:04]} 54. Kd5 {[%clk 0:00:06]}  Qd6+ {[%clk 0:00:04]} 55. Kc4 {[%clk 0:00:06]}  Qd4+ {[%clk 0:00:04]} 1/2-1/2


[Site "https://www.chess.com"]

[Event "Titled Tuesday Blitz April 26 Early 2022"]
[White "Srebrnic, Marko"]
[Black "Shtyka, Sergey"]
[WhiteFideId "14603616"]
[BlackFideId "4138465"]
[WhiteElo "2340"]
[BlackElo "2014"]
[Result "1/2-1/2"]
[Round "08"]
[TimeControl "180+1"]
[Date "2022.04.26"]
[WhiteClock "0:00:56"]
[BlackClock "0:00:09"]

1. e4 {[%clk 0:03:00]}  c5 {[%clk 0:02:56]} 2. Nf3 {[%clk 0:02:59]}  d6 {[%clk 0:02:55]} 3. d4 {[%clk 0:02:58]}  cxd4 {[%clk 0:02:56]} 4. Nxd4 {[%clk 0:02:59]}  Nf6 {[%clk 0:02:56]} 5. Nc3 {[%clk 0:03:00]}  g6 {[%clk 0:02:57]} 6. Be2 {[%clk 0:02:59]}  Bg7 {[%clk 0:02:57]} 7. h4 {[%clk 0:03:00]}  Nc6 {[%clk 0:02:55]} 8. h5 {[%clk 0:03:00]}  Nxe4 {[%clk 0:02:43]} 9. Nxc6 {[%clk 0:02:59]}  Nxc3 {[%clk 0:02:40]} 10. Nxd8 {[%clk 0:02:59]}  Nxd1 {[%clk 0:02:40]} 11. Nxf7 {[%clk 0:02:59]}  Nxf2 {[%clk 0:02:23]} 12. Kxf2 {[%clk 0:02:46]}  O-O {[%clk 0:01:52]} 13. hxg6 {[%clk 0:02:40]}  hxg6 {[%clk 0:01:50]} 14. Bc4 {[%clk 0:02:40]}  e6 {[%clk 0:01:50]} 15. c3 {[%clk 0:02:31]}  Rxf7+ {[%clk 0:01:48]} 16. Ke2 {[%clk 0:02:31]}  d5 {[%clk 0:01:47]} 17. Bd3 {[%clk 0:02:32]}  e5 {[%clk 0:01:13]} 18. Bxg6 {[%clk 0:02:30]}  Rf6 {[%clk 0:01:13]} 19. Bh7+ {[%clk 0:02:30]}  Kf7 {[%clk 0:01:10]} 20. Bg5 {[%clk 0:02:30]}  Bg4+ {[%clk 0:01:05]} 21. Ke3 {[%clk 0:02:27]}  Rb6 {[%clk 0:00:44]} 22. Rhf1+ {[%clk 0:02:22]}  Ke6 {[%clk 0:00:44]} 23. Rf2 {[%clk 0:02:15]}  d4+ {[%clk 0:00:40]} 24. cxd4 {[%clk 0:02:12]}  exd4+ {[%clk 0:00:40]} 25. Kd3 {[%clk 0:02:12]}  Rf8 {[%clk 0:00:31]} 26. Re1+ {[%clk 0:02:12]}  Kd5 {[%clk 0:00:24]} 27. Rxf8 {[%clk 0:01:59]}  Bxf8 {[%clk 0:00:24]} 28. Re8 {[%clk 0:01:50]}  Bc5 {[%clk 0:00:07]} 29. Rd8+ {[%clk 0:01:42]}  Kc6 {[%clk 0:00:06]} 30. Be4+ {[%clk 0:01:41]}  Kb5 {[%clk 0:00:07]} 31. Rd5 {[%clk 0:01:32]}  Rc6 {[%clk 0:00:04]} 32. Bd8 {[%clk 0:01:28]}  Rc8 {[%clk 0:00:04]} 33. a3 {[%clk 0:01:27]}  a5 {[%clk 0:00:04]} 34. Kc2 {[%clk 0:01:19]}  b6 {[%clk 0:00:02]} 35. Bf6 {[%clk 0:01:16]}  Ka6 {[%clk 0:00:02]} 36. Kd3 {[%clk 0:01:15]}  Be6 {[%clk 0:00:02]} 37. Rd8 {[%clk 0:01:13]}  Rxd8 {[%clk 0:00:01]} 38. Bxd8 {[%clk 0:01:14]}  Kb5 {[%clk 0:00:02]} 39. Bb7 {[%clk 0:01:03]}  Bc4+ {[%clk 0:00:02]} 40. Kd2 {[%clk 0:01:02]}  Bd6 {[%clk 0:00:02]} 41. Bg5 {[%clk 0:00:59]}  Be5 {[%clk 0:00:03]} 42. Be4 {[%clk 0:00:59]}  Kc5 {[%clk 0:00:03]} 43. Bd3 {[%clk 0:00:59]}  Bxd3 {[%clk 0:00:02]} 44. Kxd3 {[%clk 0:01:00]}  Kd5 {[%clk 0:00:03]} 45. g4 {[%clk 0:01:00]}  b5 {[%clk 0:00:02]} 46. b3 {[%clk 0:01:00]}  a4 {[%clk 0:00:03]} 47. bxa4 {[%clk 0:01:00]}  bxa4 {[%clk 0:00:03]} 48. Be7 {[%clk 0:01:00]}  Bf4 {[%clk 0:00:02]} 49. g5 {[%clk 0:00:59]}  Be3 {[%clk 0:00:02]} 50. g6 {[%clk 0:00:59]}  Ke6 {[%clk 0:00:01]} 51. g7 {[%clk 0:00:54]}  Kf7 {[%clk 0:00:01]} 52. Bf6 {[%clk 0:00:54]}  Bh6 {[%clk 0:00:01]} 53. Kxd4 {[%clk 0:00:48]}  Bxg7 {[%clk 0:00:02]} 54. Bxg7 {[%clk 0:00:49]}  Kxg7 {[%clk 0:00:02]} 55. Kc5 {[%clk 0:00:50]}  Kf6 {[%clk 0:00:03]} 56. Kb5 {[%clk 0:00:51]}  Ke6 {[%clk 0:00:04]} 57. Kxa4 {[%clk 0:00:51]}  Kd7 {[%clk 0:00:05]} 58. Kb5 {[%clk 0:00:52]}  Kc8 {[%clk 0:00:06]} 59. Ka6 {[%clk 0:00:53]}  Kb8 {[%clk 0:00:06]} 60. Kb6 {[%clk 0:00:53]}  Ka8 {[%clk 0:00:07]} 61. a4 {[%clk 0:00:54]}  Kb8 {[%clk 0:00:07]} 62. a5 {[%clk 0:00:55]}  Ka8 {[%clk 0:00:08]} 63. a6 {[%clk 0:00:56]}  Kb8 {[%clk 0:00:08]} 64. a7+ {[%clk 0:00:55]}  Ka8 {[%clk 0:00:09]} 65. Kc6 {[%clk 0:00:56]}  Kxa7 {[%clk 0:00:09]} 1/2-1/2


[Site "https://www.chess.com"]

[Event "Titled Tuesday Blitz April 26 Early 2022"]
[White "Subelj, Jan"]
[Black "Kotepalli, Sai Nirupama"]
[WhiteFideId "14618583"]
[BlackFideId "5039444"]
[WhiteElo "2306"]
[BlackElo "2392"]
[Result "1-0"]
[Round "08"]
[TimeControl "180+1"]
[Date "2022.04.26"]
[WhiteClock "0:00:27"]
[BlackClock "0:00:36"]

1. d4 {[%clk 0:02:57]}  g6 {[%clk 0:02:59]} 2. h4 {[%clk 0:02:54]}  h5 {[%clk 0:02:58]} 3. c4 {[%clk 0:02:47]}  Bg7 {[%clk 0:02:57]} 4. Nc3 {[%clk 0:02:41]}  d6 {[%clk 0:02:57]} 5. Bg5 {[%clk 0:02:36]}  Nf6 {[%clk 0:02:56]} 6. f3 {[%clk 0:02:32]}  Nh7 {[%clk 0:02:53]} 7. Bc1 {[%clk 0:02:23]}  e5 {[%clk 0:02:45]} 8. dxe5 {[%clk 0:02:15]}  Bxe5 {[%clk 0:02:46]} 9. Kf2 {[%clk 0:02:12]}  Nc6 {[%clk 0:02:41]} 10. e3 {[%clk 0:02:08]}  Be6 {[%clk 0:02:36]} 11. Nd5 {[%clk 0:01:59]}  Ne7 {[%clk 0:02:28]} 12. Ne2 {[%clk 0:01:53]}  Nf5 {[%clk 0:02:26]} 13. g3 {[%clk 0:01:52]}  c6 {[%clk 0:02:23]} 14. Ndf4 {[%clk 0:01:50]}  Bd7 {[%clk 0:02:18]} 15. e4 {[%clk 0:01:44]}  Qb6+ {[%clk 0:02:16]} 16. Kg2 {[%clk 0:01:40]}  O-O-O {[%clk 0:02:15]} 17. exf5 {[%clk 0:01:38]}  Bxf5 {[%clk 0:02:06]} 18. Qb3 {[%clk 0:01:37]}  Qc7 {[%clk 0:02:01]} 19. Be3 {[%clk 0:01:36]}  b6 {[%clk 0:01:57]} 20. a4 {[%clk 0:01:34]}  Rhe8 {[%clk 0:01:55]} 21. a5 {[%clk 0:01:33]}  Kb7 {[%clk 0:01:43]} 22. axb6 {[%clk 0:01:26]}  axb6 {[%clk 0:01:42]} 23. Nd4 {[%clk 0:01:10]}  Bd7 {[%clk 0:01:33]} 24. Kf2 {[%clk 0:00:57]}  Ra8 {[%clk 0:01:25]} 25. Be2 {[%clk 0:00:55]}  Qd8 {[%clk 0:01:13]} 26. Rxa8 {[%clk 0:00:50]}  Qxa8 {[%clk 0:01:13]} 27. Nc2 {[%clk 0:00:43]}  c5 {[%clk 0:01:08]} 28. Nd5 {[%clk 0:00:42]}  Qd8 {[%clk 0:01:05]} 29. Ra1 {[%clk 0:00:41]}  Nf6 {[%clk 0:01:00]} 30. Qa3 {[%clk 0:00:38]}  Nxd5 {[%clk 0:00:45]} 31. Qa7+ {[%clk 0:00:36]}  Kc6 {[%clk 0:00:44]} 32. cxd5+ {[%clk 0:00:36]}  Kxd5 {[%clk 0:00:44]} 33. Bc4+ {[%clk 0:00:28]}  Kxc4 {[%clk 0:00:39]} 34. Qa2+ {[%clk 0:00:27]}  Kd3 {[%clk 0:00:36]} 35. Qb3+ {[%clk 0:00:27]} 1-0


[Site "https://www.chess.com"]